fUST/lending_fUST_20251121
["ID","MTS","AMOUNT","RATE_DAILY","PERIOD"]
[394555865,1763703039873,-250.0,9.044e-05,2]
[394555866,1763703039882,-500.0,9.044e-05,2]
[394555867,1763703039891,-250.0,9.044e-05,2]
[394555869,1763703039901,-250.0,9.044e-05,2]
[394555870,1763703039910,-500.0,9.044e-05,2]
[394555871,1763703039919,-250.0,9.044e-05,2]
[394555872,1763703039929,-209.40437684,9.044e-05,2]
[394555873,1763703039938,-250.0,9.044e-05,2]
[394555874,1763703039951,-500.0,9.044e-05,2]
[394555875,1763703039961,-250.0,9.044e-05,2]
[394555876,1763703039970,-250.0,9.044e-05,2]
[394555877,1763703039980,-500.0,9.044e-05,2]
[394555878,1763703039990,-250.0,9.044e-05,2]
[394555879,1763703039999,-250.0,9.044e-05,2]
[394555880,1763703040009,-500.0,9.044e-05,2]
[394555881,1763703040018,-250.0,9.044e-05,2]
[394555882,1763703040031,-250.0,9.044e-05,2]
[394555883,1763703040040,-500.0,9.044e-05,2]
[394555884,1763703040050,-250.0,9.044e-05,2]
[394555885,1763703040060,-250.0,9.044e-05,2]
[394555886,1763703040071,-500.0,9.044e-05,2]
[394555887,1763703040080,-250.0,9.044e-05,2]
[394555888,1763703040090,-250.0,9.044e-05,2]
[394555889,1763703040100,-250.0,9.044e-05,2]
[394555890,1763703040111,-250.0,9.044e-05,2]
[394555891,1763703040120,-250.0,9.044e-05,2]
[394555892,1763703040130,-250.0,9.044e-05,2]
[394555893,1763703040140,-250.0,9.044e-05,2]
[394555895,1763703040149,-250.0,9.044e-05,2]
[394555896,1763703040158,-250.0,9.044e-05,2]
[394555898,1763703040167,-250.0,9.044e-05,2]
[394555899,1763703040177,-250.0,9.044e-05,2]
[394555900,1763703040187,-250.0,9.044e-05,2]
[394555901,1763703040197,-250.0,9.044e-05,2]
[394555902,1763703040208,-250.0,9.044e-05,2]
[394555903,1763703040217,-250.0,9.044e-05,2]
[394555904,1763703040227,-151.0,9.044e-05,2]
[394555905,1763703040237,-977.852181,9.049e-05,2]
[394555906,1763703040246,-977.852181,9.049e-05,2]
[394555907,1763703040255,-977.852181,9.049e-05,2]
[394555908,1763703040264,-977.852181,9.049e-05,2]
[394555909,1763703040274,-151.0,9.049e-05,2]
[394555910,1763703040284,-239075.7022513,9.049e-05,2]
[394555912,1763703040605,-1069.39056157,9.049e-05,2]
[394555913,1763703040979,5000.0,0.0001,3]
[394555914,1763703041093,-357.25295646,9.044e-05,2]
[394555915,1763703041103,-6949.14851202,9.049e-05,2]
[394555916,1763703041156,1184.0,0.00023586,120]
[394555917,1763703042082,1184.0,0.00024765,120]
[394555953,1763703046534,-410.23704967,5e-05,2]
[394555954,1763703046544,-500.0,5e-05,2]
[394555955,1763703046554,-17584.19909518,9.049e-05,2]
[394555956,1763703048666,205.00021704,0.0001,3]
[394555957,1763703056505,5000.0,0.0001,3]
[394555958,1763703064511,5000.0,0.0001,3]
[394555959,1763703080290,5000.0,0.0001,3]
[394555960,1763703088085,5000.0,0.0001,3]
[394555961,1763703099368,110.64729797,0.00023713,110]
[394555964,1763703181589,162.57,1e-05,2]
[394555965,1763703181873,162.57,1e-05,2]
[394555966,1763703182201,162.57,1e-05,2]
[394555967,1763703182499,162.57,1e-05,2]
[394555968,1763703182995,162.57,1.1e-05,2]
[394555969,1763703183947,162.57,1.1e-05,2]
[394555970,1763703184274,162.57,1.1e-05,2]
[394555971,1763703184664,162.57,1.1e-05,2]
[394555972,1763703213066,-394.2638539,0.00010959,7]
[394555973,1763703213088,-520.51439024,0.00010959,7]
[394555974,1763703222966,130.55045447,0.0002265,102]
[394555975,1763703223347,177.77777778,0.00022742,110]
[394555976,1763703241595,162.55,1e-05,2]
[394555977,1763703297616,-270.61806968,4.851e-05,2]
[394555978,1763703298683,-598.15984507,4.851e-05,2]
[394555979,1763703299163,-229.38193032,4.9e-05,2]
[394555980,1763703301266,-233.87676514,4.876e-05,2]
[394555981,1763703301301,-36.74130454,4.9e-05,2]
[394555982,1763703302832,602.65467989,4.851e-05,2]
[394555983,1763703303873,-229.38193032,4.999e-05,2]
[394555984,1763703305963,-70.61806968,4.999e-05,2]
[394555985,1763703305992,-158.76386064,5e-05,2]
[394555986,1763703307887,-215.34911615,5e-05,2]
[394555987,1763703309912,-125.88702321,5e-05,2]
[394555988,1763703309944,-142.08623758,5e-05,2]
[394555989,1763703312075,-215.34911615,4.95e-05,2]
[394555990,1763703312099,-16.67762306,4.999e-05,2]
[394555992,1763703315258,-303.91978237,4.999e-05,2]
[394555993,1763703318347,-120.40259457,4.999e-05,2]
[394555994,1763703318378,-147.57066622,5e-05,2]
[394555995,1763703320541,-79.12101095,5e-05,2]
[394555996,1763703320567,-188.85224984,5e-05,2]
[394556002,1763703336269,474.0,0.00024594,120]
[394556003,1763703340870,500.0,0.00025279,120]
[394556004,1763703343073,267.97326079,4.851e-05,2]
[394556005,1763703365599,267.97326079,4.851e-05,2]
[394556006,1763703375520,-267.97326079,4.9e-05,2]
[394556007,1763703375547,-5716.99681436,4.95e-05,2]
[394556008,1763703375571,-300.0,4.999e-05,2]
[394556009,1763703375601,-311.14775016,5e-05,2]
[394556010,1763703375636,-500.0,5e-05,2]
[394556011,1763703375663,-500.0,5e-05,2]
[394556012,1763703375697,-500.0,5e-05,2]
[394556013,1763703375723,-500.0,5e-05,2]
[394556014,1763703375752,-500.0,5e-05,2]
[394556015,1763703375778,-500.0,5e-05,2]
[394556016,1763703375809,-428.68937723,5e-05,2]
[394556017,1763703375835,-477.15968697,5e-05,2]
[394556018,1763703375866,-500.0,5e-05,2]
[394556019,1763703375894,-500.0,5e-05,2]
[394556020,1763703375927,-500.0,5e-05,2]
[394556021,1763703375950,-420.0,5.499e-05,2]
[394556022,1763703375973,-234.07015792,5.75e-05,2]
[394556023,1763703375999,-533.0,6.049e-05,2]
[394556024,1763703376026,-275.97458287,6.876e-05,2]
[394556025,1763703376048,-369.47465673,7.582e-05,2]
[394556026,1763703376071,-354.42490231,8.824e-05,2]
[394556027,1763703376095,-207.634,8.868e-05,2]
[394556028,1763703376119,-318.07240059,8.876e-05,2]
[394556029,1763703376147,-2601.9117306,9.042e-05,2]
[394556030,1763703376172,-1000.0,9.049e-05,2]
[394556031,1763703376198,-1000.0,9.049e-05,2]
[394556032,1763703376224,-1000.0,9.049e-05,2]
[394556033,1763703376248,-1000.0,9.049e-05,2]
[394556034,1763703376272,-1031.86231323,9.049e-05,2]
[394556035,1763703376296,-1000.0,9.049e-05,2]
[394556036,1763703376319,-871.62002874,9.049e-05,2]
[394556037,1763703376347,-865779.9883375,9.108e-05,2]
[394556040,1763703421313,-500.0,0.00019178,30]
[394556041,1763703421334,-500.0,0.00019178,30]
[394556043,1763703622425,237.0,0.00024847,120]
[394556053,1763703771950,5000.0,0.0001,3]
[394556054,1763703773533,-316.16500478,0.00010959,7]
[394556055,1763703773554,-73.83499522,0.00010959,7]
[394556056,1763703775830,210.0,0.00025278,120]
[394556057,1763703779621,3291.52556787,0.0001,3]
[394556058,1763703795454,5000.0,9e-05,3]
[394556059,1763703832160,-1023.18271879,8.279e-05,2]
[394556060,1763703832183,-391.36969147,8.363e-05,2]
[394556061,1763703832207,-447.2796474,8.363e-05,2]
[394556062,1763703832232,-184.53337992,8.363e-05,2]
[394556063,1763703832255,-332.16008386,8.363e-05,2]
[394556064,1763703832283,-590.50681575,8.363e-05,2]
[394556065,1763703832307,-166.76406775,8.539e-05,2]
[394556066,1763703832333,-222.67775539,8.585e-05,2]
[394556067,1763703832358,-1044.246587,8.926e-05,2]
[394556068,1763703832381,-11015.3824253,9.048e-05,2]
[394556069,1763703832404,-248.39317976,9.049e-05,2]
[394556070,1763703832428,-313.84414054,9.049e-05,2]
[394556071,1763703832451,-447.10772356,9.049e-05,2]
[394556072,1763703832481,-325.4099308,9.107e-05,2]
[394556073,1763703832506,-330.79552077,9.107e-05,2]
[394556074,1763703832535,-24220.0116625,9.108e-05,2]
[394556075,1763703832560,-157.770035,9.108e-05,2]
[394556076,1763703832583,-501.52480581,9.183e-05,2]
[394556077,1763703832605,-501.62380235,9.183e-05,2]
[394556078,1763703832629,-500.0,9.183e-05,2]
[394556079,1763703832654,-500.0,9.183e-05,2]
[394556080,1763703832679,-500.0,9.2e-05,2]
[394556081,1763703832702,-500.0,9.2e-05,2]
[394556082,1763703832872,-500.0,9.2e-05,2]
[394556083,1763703832895,-209.40437684,9.2e-05,2]
[394556084,1763703832920,-500.0,9.2e-05,2]
[394556085,1763703832944,-250.0,9.2e-05,2]
[394556086,1763703832971,-500.0,9.2e-05,2]
[394556087,1763703832999,-250.0,9.2e-05,2]
[394556088,1763703833023,-500.0,9.2e-05,2]
[394556089,1763703833047,-250.0,9.2e-05,2]
[394556090,1763703833072,-250.0,9.2e-05,2]
[394556091,1763703833096,-500.0,9.2e-05,2]
[394556092,1763703833121,-250.0,9.2e-05,2]
[394556093,1763703833145,-500.0,9.2e-05,2]
[394556094,1763703833170,-500.0,9.2e-05,2]
[394556095,1763703833196,-250.0,9.2e-05,2]
[394556096,1763703833221,-500.0,9.2e-05,2]
[394556097,1763703833249,-250.0,9.2e-05,2]
[394556098,1763703833276,-250.0,9.2e-05,2]
[394556099,1763703833307,-500.0,9.2e-05,2]
[394556100,1763703833334,-250.0,9.2e-05,2]
[394556101,1763703833362,-250.0,9.2e-05,2]
[394556102,1763703833390,-250.0,9.2e-05,2]
[394556103,1763703833416,-250.0,9.2e-05,2]
[394556104,1763703833440,-250.0,9.2e-05,2]
[394556105,1763703833466,-250.0,9.2e-05,2]
[394556106,1763703833491,-250.0,9.2e-05,2]
[394556107,1763703833517,-250.0,9.2e-05,2]
[394556108,1763703833545,-250.0,9.2e-05,2]
[394556109,1763703833570,-250.0,9.2e-05,2]
[394556110,1763703833601,-250.0,9.2e-05,2]
[394556111,1763703833632,-250.0,9.2e-05,2]
[394556112,1763703833659,-250.0,9.2e-05,2]
[394556113,1763703833685,-250.0,9.2e-05,2]
[394556114,1763703833709,-500.0,9.202e-05,2]
[394556115,1763703839668,5000.0,9.206e-05,2]
[394556116,1763703854627,316.24027725,9.206e-05,2]
[394556117,1763703863339,5000.0,9.206e-05,2]
[394556118,1763703878986,992.034257,9.108e-05,2]
[394556119,1763703903127,-300.0,9.113e-05,2]
[394556120,1763703903152,-225104.80441942,9.114e-05,2]
[394556121,1763704007084,-223.02823501,8.933e-05,2]
[394556122,1763704021387,-39.58556056,8.933e-05,2]
[394556123,1763704031871,-890000.0,9.008e-05,2]
[394556124,1763704033083,-262.61379557,9.023e-05,2]
[394556125,1763704033104,-223.57746456,9.068e-05,2]
[394556126,1763704033125,-300.0,9.114e-05,2]
[394556127,1763704033146,-500.0,9.183e-05,2]
[394556128,1763704033167,-358.67901776,9.2e-05,2]
[394556129,1763704033186,-166.12922294,9.2e-05,2]
[394556130,1763704033207,-500.0,9.2e-05,2]
[394556131,1763704033227,-276.4780369,9.2e-05,2]
[394556132,1763704033248,-500.0,9.2e-05,2]
[394556133,1763704033269,-500.0,9.2e-05,2]
[394556134,1763704033290,-500.0,9.2e-05,2]
[394556135,1763704033311,-250.0,9.2e-05,2]
[394556136,1763704033338,-250.0,9.2e-05,2]
[394556137,1763704033363,-500.0,9.2e-05,2]
[394556138,1763704033386,-250.0,9.2e-05,2]
[394556139,1763704033414,-250.0,9.2e-05,2]
[394556140,1763704033438,-500.0,9.2e-05,2]
[394556141,1763704033461,-250.0,9.2e-05,2]
[394556142,1763704033485,-250.0,9.2e-05,2]
[394556143,1763704033508,-500.0,9.2e-05,2]
[394556144,1763704033531,-250.0,9.2e-05,2]
[394556145,1763704033554,-250.0,9.2e-05,2]
[394556146,1763704033575,-500.0,9.2e-05,2]
[394556147,1763704033596,-250.0,9.2e-05,2]
[394556148,1763704033620,-250.0,9.2e-05,2]
[394556149,1763704033801,-500.0,9.2e-05,2]
[394556150,1763704033825,-250.0,9.2e-05,2]
[394556151,1763704033848,-250.0,9.2e-05,2]
[394556152,1763704033869,-500.0,9.2e-05,2]
[394556153,1763704033895,-250.0,9.2e-05,2]
[394556154,1763704033919,-250.0,9.2e-05,2]
[394556155,1763704033945,-500.0,9.2e-05,2]
[394556156,1763704033965,-250.0,9.2e-05,2]
[394556157,1763704033987,-250.0,9.2e-05,2]
[394556158,1763704034006,-250.0,9.2e-05,2]
[394556159,1763704034028,-250.0,9.2e-05,2]
[394556160,1763704034048,-9.48216749,9.2e-05,2]
[394556161,1763704034077,-240.51783251,9.2e-05,2]
[394556162,1763704034099,-250.0,9.2e-05,2]
[394556163,1763704034120,-250.0,9.2e-05,2]
[394556164,1763704034142,-250.0,9.2e-05,2]
[394556165,1763704034163,-1146.86135664,9.206e-05,2]
[394556167,1763704058094,-762.61379557,9e-05,2]
[394556168,1763704058120,-1000.0,9.091e-05,2]
[394556169,1763704058145,-500.0,9.183e-05,2]
[394556170,1763704058174,-500.0,9.183e-05,2]
[394556171,1763704065226,5000.0,9.206e-05,2]
[394556172,1763704118105,-2000.0,9.114e-05,2]
[394556173,1763704158471,-890000.0,9.106e-05,2]
[394556195,1763704232591,-35.37107112,9.114e-05,2]
[394556196,1763704232600,-466.42239878,9.183e-05,2]
[394556198,1763704232612,-33.57760122,9.183e-05,2]
[394556222,1763704232793,-407.42239878,9.183e-05,2]
[394556284,1763704238559,-92.57760122,9.183e-05,2]
[394556285,1763704238569,-500.0,9.199e-05,2]
[394556286,1763704238579,-500.0,9.199e-05,2]
[394556287,1763704238589,-318.53974506,9.199e-05,2]
[394556288,1763704238619,-87.63025494,9.199e-05,2]
[394556289,1763704238629,-794.85817522,9.2e-05,2]
[394556290,1763704238639,-500.0,9.2e-05,2]
[394556291,1763704238649,-500.0,9.2e-05,2]
[394556292,1763704238659,-500.0,9.2e-05,2]
[394556293,1763704238669,-500.0,9.2e-05,2]
[394556294,1763704238679,-500.0,9.2e-05,2]
[394556295,1763704238687,-500.0,9.2e-05,2]
[394556296,1763704238697,-250.0,9.2e-05,2]
[394556297,1763704238707,-500.0,9.2e-05,2]
[394556298,1763704238715,-250.0,9.2e-05,2]
[394556299,1763704238725,-500.0,9.2e-05,2]
[394556300,1763704238735,-250.0,9.2e-05,2]
[394556301,1763704238744,-250.0,9.2e-05,2]
[394556302,1763704238753,-500.0,9.2e-05,2]
[394556303,1763704238763,-250.0,9.2e-05,2]
[394556304,1763704238772,-500.0,9.2e-05,2]
[394556305,1763704238781,-500.0,9.2e-05,2]
[394556306,1763704238791,-250.0,9.2e-05,2]
[394556307,1763704238801,-333.3321944,9.2e-05,2]
[394556308,1763704238810,-250.0,9.2e-05,2]
[394556309,1763704238820,-250.0,9.2e-05,2]
[394556310,1763704238830,-250.0,9.2e-05,2]
[394556311,1763704238839,-250.0,9.2e-05,2]
[394556312,1763704238849,-250.0,9.2e-05,2]
[394556313,1763704238859,-250.0,9.2e-05,2]
[394556314,1763704238868,-250.0,9.2e-05,2]
[394556315,1763704238877,-250.0,9.2e-05,2]
[394556316,1763704238887,-250.0,9.2e-05,2]
[394556317,1763704238896,-250.0,9.2e-05,2]
[394556318,1763704238905,-250.0,9.2e-05,2]
[394556319,1763704238915,-219.0,9.205e-05,2]
[394556320,1763704238924,-89441.08677163,9.206e-05,2]
[394556321,1763704239313,-1344.10663391,9.206e-05,2]
[394556322,1763704239332,-1078.97263623,9.206e-05,2]
[394556325,1763704240907,-3e-08,9.206e-05,2]
[394556377,1763704245256,-1126.3235459,9.206e-05,2]
[394556386,1763704246933,-634.58328759,9.206e-05,2]
[394556388,1763704247152,-237.48657657,9.206e-05,2]
[394556389,1763704247164,-3479.50790927,9.206e-05,2]
[394556390,1763704297775,-1066.60060345,9.114e-05,2]
[394556391,1763704297800,-507.31784937,9.183e-05,2]
[394556392,1763704297825,-501.35382969,9.183e-05,2]
[394556393,1763704297849,-501.95856449,9.183e-05,2]
[394556394,1763704297875,-500.0,9.183e-05,2]
[394556395,1763704297900,-500.0,9.183e-05,2]
[394556396,1763704307722,-220203.92285201,9.206e-05,2]
[394556397,1763704307750,-223.47298044,9.207e-05,2]
[394556498,1763704419621,-634.0,9.105e-05,2]
[394556499,1763704419649,-226590.16174303,9.106e-05,2]
[394556500,1763704423255,-634.0,9.106e-05,2]
[394556521,1763704472245,1220.55,0.00025279,120]
[394556626,1763705421698,197.0,0.00024615,120]
[394556658,1763705431839,-295.66838157,8.507e-05,2]
[394556660,1763705431849,-209.89011681,8.808e-05,2]
[394556663,1763705431998,-9.11340402,8.808e-05,2]
[394556664,1763705432007,-1110.12040951,9.108e-05,2]
[394556809,1763705437726,-146.45631649,9.108e-05,2]
[394556810,1763705437736,-189.324043,9.108e-05,2]
[394556811,1763705437745,-250.0,9.202e-05,2]
[394556812,1763705437754,-250.0,9.202e-05,2]
[394556813,1763705437763,-250.0,9.202e-05,2]
[394556814,1763705437774,-250.0,9.202e-05,2]
[394556815,1763705437787,-500.0,9.202e-05,2]
[394556816,1763705437796,-209.19045597,9.202e-05,2]
[394556817,1763705437808,-40.80954403,9.202e-05,2]
[394556818,1763705437819,-500.0,9.202e-05,2]
[394556819,1763705437830,-250.0,9.202e-05,2]
[394556820,1763705437839,-500.0,9.202e-05,2]
[394556821,1763705437850,-250.0,9.202e-05,2]
[394556822,1763705437860,-500.0,9.202e-05,2]
[394556823,1763705437869,-250.0,9.202e-05,2]
[394556825,1763705437878,-500.0,9.202e-05,2]
[394556826,1763705437888,-250.0,9.202e-05,2]
[394556827,1763705437897,-500.0,9.202e-05,2]
[394556829,1763705437907,-310.78155604,9.202e-05,2]
[394556831,1763705437916,-500.0,9.202e-05,2]
[394556833,1763705437925,-500.0,9.202e-05,2]
[394556835,1763705437935,-500.0,9.202e-05,2]
[394556837,1763705437944,-500.0,9.202e-05,2]
[394556839,1763705437953,-500.0,9.202e-05,2]
[394556841,1763705437962,-162.0,9.207e-05,2]
[394556843,1763705437971,-162.0,9.207e-05,2]
[394556845,1763705437980,-162.0,9.207e-05,2]
[394556847,1763705437990,-162.0,9.207e-05,2]
[394556849,1763705438000,-162.0,9.207e-05,2]
[394556851,1763705438009,-174.30499843,9.207e-05,2]
[394556853,1763705438018,-162.0,9.207e-05,2]
[394556855,1763705438029,-166.13905619,9.207e-05,2]
[394556857,1763705438038,-333.0,9.207e-05,2]
[394556859,1763705438048,-333.0,9.207e-05,2]
[394556861,1763705438057,-152.0,9.207e-05,2]
[394556863,1763705438067,-333.0,9.207e-05,2]
[394556865,1763705438078,-152.0,9.207e-05,2]
[394556867,1763705438087,-333.0,9.207e-05,2]
[394556869,1763705438098,-152.0,9.207e-05,2]
[394556871,1763705438108,-152.0,9.207e-05,2]
[394556873,1763705438119,-333.0,9.207e-05,2]
[394556875,1763705438130,-152.0,9.207e-05,2]
[394556877,1763705438140,-333.0,9.207e-05,2]
[394556879,1763705438150,-152.0,9.207e-05,2]
[394556881,1763705438160,-333.0,9.207e-05,2]
[394556883,1763705438170,-333.0,9.207e-05,2]
[394556886,1763705438180,-333.0,9.207e-05,2]
[394556888,1763705438190,-333.0,9.207e-05,2]
[394556890,1763705438200,-333.0,9.207e-05,2]
[394556892,1763705438209,-333.0,9.207e-05,2]
[394556894,1763705438219,-152.0,9.207e-05,2]
[394556896,1763705438229,-333.0,9.207e-05,2]
[394556898,1763705438238,-152.0,9.207e-05,2]
[394556900,1763705438248,-152.0,9.207e-05,2]
[394556902,1763705438257,-333.0,9.207e-05,2]
[394556904,1763705438267,-152.0,9.207e-05,2]
[394556906,1763705438276,-333.0,9.207e-05,2]
[394556908,1763705438286,-152.0,9.207e-05,2]
[394556910,1763705438297,-333.0,9.207e-05,2]
[394556912,1763705438307,-152.0,9.207e-05,2]
[394556914,1763705438316,-333.0,9.207e-05,2]
[394556916,1763705438325,-152.0,9.207e-05,2]
[394556918,1763705438336,-333.0,9.207e-05,2]
[394556920,1763705438347,-152.0,9.207e-05,2]
[394556922,1763705438356,-333.0,9.207e-05,2]
[394556924,1763705438366,-152.0,9.207e-05,2]
[394556926,1763705438376,-333.0,9.207e-05,2]
[394556928,1763705438388,-152.0,9.207e-05,2]
[394556930,1763705438398,-333.0,9.207e-05,2]
[394556932,1763705438407,-152.0,9.207e-05,2]
[394556934,1763705438416,-333.0,9.207e-05,2]
[394556936,1763705438426,-152.0,9.207e-05,2]
[394556938,1763705438436,-333.0,9.207e-05,2]
[394556940,1763705438445,-48357.22488024,9.208e-05,2]
[394556942,1763705438455,-300.0,9.287e-05,2]
[394556944,1763705438465,-600.0,9.413e-05,2]
[394556946,1763705438475,-2252.81941553,9.52e-05,2]
[394556948,1763705438484,-280.87892628,9.571e-05,2]
[394556950,1763705438494,-989.0,9.628e-05,2]
[394556952,1763705438503,-630.0,9.628e-05,2]
[394556954,1763705438512,-2151.0,9.628e-05,2]
[394556956,1763705438522,-2252.81941553,9.82e-05,2]
[394556958,1763705438532,-257.63435545,9.84e-05,2]
[394556960,1763705438542,-2252.81941553,9.924e-05,2]
[394556962,1763705438551,-1001.17645396,9.95e-05,2]
[394556964,1763705438561,-395.9700873,9.953e-05,2]
[394556966,1763705438571,-396.1023285,9.953e-05,2]
[394556968,1763705438582,-406.5179537,9.953e-05,2]
[394556970,1763705438592,-395.9700873,9.953e-05,2]
[394556972,1763705438601,-395.9700873,9.953e-05,2]
[394556974,1763705438611,-395.9700873,9.953e-05,2]
[394556976,1763705438620,-151.0,0.0001,2]
[394556978,1763705438629,-151.0,0.0001,2]
[394556980,1763705438639,-151.0,0.0001,2]
[394556982,1763705438648,-151.0,0.0001,2]
[394556984,1763705438658,-151.0,0.0001,2]
[394556986,1763705438668,-151.0,0.0001,2]
[394556988,1763705438677,-151.0,0.0001,2]
[394556991,1763705438696,-151.0,0.0001,2]
[394556993,1763705438706,-151.0,0.0001,2]
[394556996,1763705438717,-151.0,0.0001,2]
[394556998,1763705438727,-151.0,0.0001,2]
[394557000,1763705438737,-151.0,0.0001,2]
[394557002,1763705438746,-151.0,0.0001,2]
[394557004,1763705438756,-151.0,0.0001,2]
[394557006,1763705438766,-151.0,0.0001,2]
[394557008,1763705438779,-151.0,0.0001,2]
[394557010,1763705438789,-151.0,0.0001,2]
[394557012,1763705438799,-151.0,0.0001,2]
[394557014,1763705438808,-151.0,0.0001,2]
[394557016,1763705438819,-151.0,0.0001,2]
[394557018,1763705438829,-500.0,0.0001,2]
[394557020,1763705438839,-151.0,0.0001,2]
[394557022,1763705438849,-209.40437684,0.0001,2]
[394557024,1763705438862,-2252.81941553,0.00010247,2]
[394557026,1763705438873,-500.0,0.00010274,2]
[394557028,1763705438883,-500.0,0.00010309,2]
[394557030,1763705438892,-500.0,0.00010309,2]
[394557032,1763705438902,-500.0,0.00010309,2]
[394557034,1763705438912,-500.0,0.00010309,2]
[394557036,1763705438922,-467.0,0.00010309,2]
[394557038,1763705438934,-500.0,0.00010309,2]
[394557040,1763705438944,-500.0,0.00010309,2]
[394557042,1763705438955,-500.0,0.00010309,2]
[394557044,1763705438964,-500.0,0.00010309,2]
[394557046,1763705438975,-151.0,0.00010309,2]
[394557048,1763705438985,-1376.0,0.00010309,2]
[394557050,1763705438994,-500.0,0.00010309,2]
[394557052,1763705439004,-500.0,0.00010309,2]
[394557054,1763705439014,-500.0,0.00010309,2]
[394557056,1763705439023,-500.0,0.00010309,2]
[394557059,1763705439033,-151.0,0.00010309,2]
[394557061,1763705439044,-783.0,0.00010309,2]
[394557063,1763705439054,-500.0,0.00010309,2]
[394557065,1763705439064,-500.0,0.00010309,2]
[394557066,1763705439074,-151.0,0.00010309,2]
[394557069,1763705439086,-152.62133723,0.00010309,2]
[394557071,1763705439096,-152.24956693,0.00010309,2]
[394557072,1763705439105,-500.0,0.00010309,2]
[394557074,1763705439115,-500.0,0.00010309,2]
[394557077,1763705439125,-500.0,0.00010309,2]
[394557078,1763705439134,-1561.0,0.00010309,2]
[394557081,1763705439144,-151.0,0.00010309,2]
[394557083,1763705439155,-500.0,0.00010309,2]
[394557085,1763705439165,-720.0,0.00010354,2]
[394557087,1763705439175,-500.0,0.00010446,2]
[394557089,1763705439185,-500.0,0.00010446,2]
[394557091,1763705439196,-500.0,0.00010446,2]
[394557093,1763705439207,-500.0,0.00010446,2]
[394557095,1763705439217,-467.0,0.00010446,2]
[394557097,1763705439227,-500.0,0.00010446,2]
[394557099,1763705439237,-500.0,0.00010446,2]
[394557101,1763705439248,-500.0,0.00010446,2]
[394557103,1763705439258,-500.0,0.00010446,2]
[394557105,1763705439268,-276.36912862,0.00010446,2]
[394557107,1763705439278,-1376.0,0.00010446,2]
[394557109,1763705439288,-500.0,0.00010446,2]
[394557111,1763705439298,-500.0,0.00010446,2]
[394557113,1763705439308,-500.0,0.00010446,2]
[394557115,1763705439318,-500.0,0.00010446,2]
[394557117,1763705439331,-151.0,0.00010446,2]
[394557119,1763705439341,-783.0,0.00010446,2]
[394557121,1763705439351,-500.0,0.00010446,2]
[394557123,1763705439360,-500.0,0.00010446,2]
[394557125,1763705439371,-500.0,0.00010446,2]
[394557127,1763705439381,-500.0,0.00010446,2]
[394557131,1763705439392,-500.0,0.00010446,2]
[394557132,1763705439601,-787.53819583,0.00010446,2]
[394557165,1763705444551,-152.0,9.207e-05,2]
[394557166,1763705444560,-152.0,9.207e-05,2]
[394557168,1763705444749,-272.32325616,9.207e-05,2]
[394557169,1763705444760,-152.0,9.207e-05,2]
[394557170,1763705444770,-333.0,9.207e-05,2]
[394557171,1763705444781,-152.0,9.207e-05,2]
[394557172,1763705444795,-333.0,9.207e-05,2]
[394557173,1763705444806,-152.0,9.207e-05,2]
[394557174,1763705444816,-333.0,9.207e-05,2]
[394557175,1763705444826,-152.0,9.207e-05,2]
[394557176,1763705444837,-333.0,9.207e-05,2]
[394557177,1763705444846,-333.0,9.207e-05,2]
[394557178,1763705444857,-151.0,0.0001,2]
[394557179,1763705444866,-151.0,0.0001,2]
[394557180,1763705444876,-151.0,0.0001,2]
[394557181,1763705444886,-151.0,0.0001,2]
[394557182,1763705444895,-151.0,0.0001,2]
[394557183,1763705444905,-151.0,0.0001,2]